bitfinex-derivatives/quotes_BNBF0:USTF0_20251219
["timestamp","ask_amount","ask_price","bid_price","bid_amount"]
[1766182287127,0.20300601,857.51,856.57,0.87305591]
[1766182291230,0.20300601,857.51,856.56,0.87305591]
[1766182296139,0.20300601,857.51,856.55,0.87305591]
[1766182319151,0.20300601,857.51,856.56,0.87305591]
[1766182324454,53.87812009,857.7,856.72,0.87305591]
[1766182324656,0.20297759,857.67,856.72,0.87305591]
[1766182325255,0.20297759,857.67,856.71,0.87305591]
[1766182325558,9.83797318,857.67,856.71,0.87305591]
[1766182329460,9.83797318,857.67,856.7,0.87305591]
[1766182332164,9.83797318,857.67,856.71,0.87305591]
[1766182332461,9.83797318,857.67,856.7,0.87305591]
[1766182333165,9.83797318,857.67,856.71,0.87305591]
[1766182333366,9.83797318,857.67,856.7,0.87305591]
[1766182334063,9.83797318,857.67,856.71,0.87305591]
[1766182334764,9.83797318,857.67,856.7,0.87305591]
[1766182335168,9.83797318,857.67,856.71,0.87305591]
[1766182336768,0.20297759,857.67,856.71,0.87305591]
[1766182336966,1.72722889,857.97,856.76,0.87305591]
[1766182337269,0.20294149,857.79,856.76,0.87305591]
[1766182339270,0.20294149,857.79,856.75,0.87305591]
[1766182341270,0.20294149,857.79,856.74,0.87305591]
[1766182344281,0.20294149,857.79,856.73,0.87305591]
[1766182346881,0.20294149,857.79,856.63,0.87305591]
[1766182359287,0.20294149,857.79,856.64,0.87305591]
[1766182364788,0.20294149,857.79,856.65,0.87305591]
[1766182367601,1.72722889,857.77,856.54,0.87305591]
[1766182380208,1.72722889,857.77,856.02,0.20299416]
[1766182380209,1.72722889,857.76,856.53,0.87305591]
[1766182380412,1.72722889,857.38,856.15,0.87305591]
[1766182380613,1.72722889,857.35,856.11,0.87305591]
[1766182380812,1.72722889,857.31,856.08,0.87305591]
[1766182381214,1.72722889,857.36,856.03,0.87305591]
[1766182381514,1.72722889,857.28,855.96,0.87305591]
[1766182381714,1.72722889,857.21,855.88,0.87305591]
[1766182381914,1.72722889,857.3,855.97,0.87305591]
[1766182382108,1.72722889,857.37,856.05,0.87305591]
[1766182382309,1.72722889,857.41,856.02,0.87305591]
[1766182382613,1.72722889,857.41,856.03,0.87305591]
[1766182382814,1.72722889,857.46,856.08,0.87305591]
[1766182383415,1.72722889,857.51,856.09,0.87305591]
[1766182384212,0.20294149,857.79,856.07,0.87305591]
[1766182384213,1.72722889,857.53,856.07,0.87305591]
[1766182385213,1.72722889,857.54,856.06,0.87305591]
[1766182385413,1.72722889,857.55,856.05,0.87305591]
[1766182386217,1.72722889,857.56,856.04,0.87305591]
[1766182387411,1.72722889,857.57,856.03,0.87305591]
[1766182388317,1.72722889,857.58,856.02,0.87305591]
[1766182389213,1.72722889,857.59,856.01,0.87305591]
[1766182389518,1.72722889,857.62,856.04,0.87305591]
[1766182390214,1.72722889,857.63,856.03,0.87305591]
[1766182391313,1.72722889,857.64,856.02,0.87305591]
[1766182391515,1.72722889,857.63,856.02,0.87305591]
[1766182391918,1.72722889,857.64,856.02,0.87305591]
[1766182393015,1.72722889,857.64,856.02,0.87014223]
[1766182393318,1.72722889,857.65,856.01,0.87014223]
[1766182394717,1.72722889,857.62,855.97,0.87014223]
[1766182396215,1.72722889,857.62,855.96,0.87014223]
[1766182396417,1.72722889,857.63,855.96,0.87014223]
[1766182397817,1.72722889,857.6,855.93,0.87014223]
[1766182398122,1.72722889,857.55,855.88,0.87014223]
[1766182399223,1.72722889,857.56,855.87,0.87014223]
[1766182400619,1.72722889,857.56,855.87,0.86956921]
[1766182404731,1.72722889,857.59,855.9,0.86956921]
[1766182406139,1.72722889,857.47,855.84,0.20312391]
[1766182406333,1.72722889,857.48,855.84,0.20312391]
[1766182407031,1.72722889,857.47,855.84,0.20312391]
[1766182408327,1.72722889,857.48,855.84,0.20312391]
[1766182408532,1.72722889,857.42,855.84,0.20312391]
[1766182408929,1.72722889,857.41,855.84,0.20312391]
[1766182409228,1.72722889,857.42,855.84,0.20312391]
[1766182410135,1.72722889,857.42,855.73,6.81149814]
[1766182410437,1.72722889,857.37,855.73,6.81149814]
[1766182410734,1.72722889,857.31,855.73,6.81149814]
[1766182411231,1.72722889,857.29,855.73,6.81149814]
[1766182412231,1.72722889,857.3,855.73,6.81149814]
[1766182413232,1.72722889,857.32,855.73,6.81149814]
[1766182414233,1.72722889,857.33,855.73,6.81149814]
[1766182416337,1.72722889,857.34,855.73,6.81149814]
[1766182417134,1.72722889,857.35,855.73,6.81149814]
[1766182418135,1.72722889,857.34,855.73,6.81149814]
[1766182418334,1.72722889,857.35,855.73,6.81149814]
[1766182424335,1.72722889,857.34,855.73,6.81149814]
[1766182424742,1.72722889,857.33,855.73,6.81149814]
[1766182425438,1.72722889,857.22,855.73,6.81149814]
[1766182426038,1.72722889,857.16,855.73,6.81149814]
[1766182429639,1.72722889,857.16,855.62,0.20318202]
[1766182431440,1.72722889,857.15,855.62,0.20318202]
[1766182433442,1.72722889,857.14,855.62,0.20318202]
[1766182434843,2.91064995,857.75,855.62,0.20318202]
[1766182434844,1.72722889,857.12,855.62,0.20318202]
[1766182435248,1.72722889,857.11,855.62,0.20318202]
[1766182436245,1.72722889,857.1,855.62,0.20318202]
[1766182437246,1.72722889,857.08,855.62,0.20318202]
[1766182438250,1.72722889,857.07,855.62,0.20318202]
[1766182439350,1.72722889,857.05,855.62,0.20318202]
[1766182441152,1.72722889,857.06,855.62,0.20318202]
[1766182444756,2.91064995,857.68,855.62,0.20318202]
[1766182444757,1.72722889,857.08,855.62,0.20318202]
[1766182445157,1.72722889,857.16,855.62,0.20318202]
[1766182445457,1.72722889,857.23,855.62,0.20318202]
[1766182446152,1.72722889,857.22,855.62,0.20318202]
[1766182448453,1.72722889,857.24,855.62,0.20318202]
[1766182450153,1.72722889,857.23,855.62,0.20318202]
[1766182451259,1.72722889,857.22,855.62,0.20318202]
[1766182452355,1.72722889,857.21,855.62,0.20318202]
[1766182453358,1.72722889,857.2,855.62,0.20318202]
[1766182454256,1.72722889,857.2,855.62,1.0740906]
[1766182454459,1.72722889,857.19,855.62,1.0740906]
[1766182454853,1.72722889,857.2,855.63,0.87090858]
[1766182455356,1.72722889,857.19,855.64,0.87090858]
[1766182456259,1.72722889,857.18,855.65,0.87090858]
[1766182457260,1.72722889,857.17,855.66,0.87090858]
[1766182458055,1.72722889,857.2,855.69,0.87090858]
[1766182458356,1.72722889,857.23,855.74,0.87090858]
[1766182459358,1.72722889,857.22,855.75,0.87090858]
[1766182460063,1.72722889,857.27,855.8,0.87090858]
[1766182460357,1.72722889,857.26,855.81,0.87090858]
[1766182461161,1.72722889,857.25,855.82,0.87090858]
[1766182462160,1.72722889,857.25,855.83,0.87090858]
[1766182462962,1.72722889,857.15,855.68,0.87090858]
[1766182463162,1.72722889,857.1,855.68,0.87090858]
[1766182463366,1.72722889,857.09,855.69,0.87090858]
[1766182464269,1.72722889,857.08,855.7,0.87090858]
[1766182464467,1.72722889,857.08,855.71,0.87090858]
[1766182464868,1.72722889,857.07,855.7,0.87090858]
[1766182465269,1.72722889,857.06,855.72,0.87090858]
[1766182466164,1.72722889,857.02,855.69,0.87090858]
[1766182466368,1.72722889,857.02,855.7,0.87090858]
[1766182468266,1.72722889,857.01,855.71,0.87090858]
[1766182469272,1.72722889,857.0,855.71,0.87090858]
[1766182469473,1.72722889,857.0,855.72,0.87090858]
[1766182474678,1.72722889,856.99,855.71,0.87090858]
[1766182481488,1.72722889,856.99,855.72,0.87090858]
[1766182482186,1.72722889,856.99,855.71,0.87090858]
[1766182482490,1.72722889,856.99,855.72,0.87090858]
[1766182483287,1.72722889,856.99,855.71,0.87090858]
[1766182483491,1.72722889,856.99,855.72,0.87090858]
[1766182484292,1.72722889,856.99,855.71,0.87090858]
[1766182484493,1.72722889,856.99,855.72,0.87090858]
[1766182484793,1.72722889,857.0,855.73,0.87090858]
[1766182484993,1.72722889,856.99,855.72,0.87090858]
[1766182488196,1.72722889,856.98,855.72,0.87090858]
[1766182489293,1.72722889,856.98,855.73,0.87090858]
[1766182492295,1.72722889,856.97,855.73,0.87090858]
[1766182493306,1.72722889,856.97,855.74,0.87090858]
[1766182494400,1.72722889,856.97,855.62,0.20318202]
[1766182494401,1.72722889,856.99,855.76,0.87090858]
[1766182495295,1.72722889,856.98,855.76,0.87090858]
[1766182497299,1.72722889,856.97,855.77,0.87090858]
[1766182498301,1.72722889,857.01,855.81,0.87090858]
[1766182501599,1.72722889,857.0,855.82,0.87090858]
[1766182501805,1.72722889,857.01,855.83,0.87090858]
[1766182502899,1.72722889,857.1,855.92,0.87090858]
[1766182503405,1.72722889,857.09,855.92,0.87090858]
[1766182504106,1.72722889,857.1,855.92,0.87090858]
[1766182504306,1.72722889,857.15,855.97,0.87090858]
[1766182504504,1.72722889,857.14,855.98,0.87090858]
[1766182505302,1.72722889,857.15,855.97,0.87090858]
[1766182505706,1.72722889,857.15,855.98,0.87090858]
[1766182505906,1.72722889,857.16,855.98,0.87090858]
[1766182506307,1.72722889,857.16,855.97,0.87090858]
[1766182507104,1.72722889,857.17,855.98,0.87090858]
[1766182507407,1.72722889,857.18,855.97,0.87090858]
[1766182508309,1.72722889,857.24,856.03,0.87090858]
[1766182508804,1.72722889,857.25,856.03,0.87090858]
[1766182509205,1.72722889,857.25,856.02,0.87090858]
[1766182509409,1.72722889,857.32,856.09,0.87090858]
[1766182509909,1.72722889,857.33,856.09,0.87090858]
[1766182510110,1.72722889,857.34,856.1,0.87090858]
[1766182510406,1.72722889,857.35,856.08,0.87090858]
[1766182510705,1.72722889,857.35,856.09,0.87090858]
[1766182510905,1.72722889,857.39,856.12,0.87090858]
[1766182511110,1.72722889,857.4,856.13,0.87090858]
[1766182511310,1.72722889,857.45,856.15,0.87090858]
[1766182512310,1.72722889,857.46,856.13,0.87090858]
[1766182512510,1.72722889,857.47,856.13,0.87090858]
[1766182513210,1.72722889,857.48,856.11,0.87090858]
[1766182513511,1.72722889,857.51,856.14,0.87090858]
[1766182514508,1.72722889,857.53,856.13,0.87090858]
[1766182514912,1.72722889,857.52,856.12,0.87090858]
[1766182515109,1.72722889,857.53,856.13,0.87090858]
[1766182515308,1.72722889,857.54,856.12,0.87090858]
[1766182515508,1.72722889,857.54,856.11,0.87090858]
[1766182516012,1.72722889,857.54,856.12,0.87090858]
[1766182516312,1.72722889,857.54,855.62,0.20318202]
[1766182516313,1.72722889,857.56,856.1,0.87090858]
[1766182517209,1.72722889,857.57,856.09,0.87090858]
[1766182518111,0.20294149,857.79,856.13,0.87090858]
[1766182518112,1.72722889,857.61,856.13,0.87090858]
[1766182518310,1.72722889,857.62,856.12,0.87090858]
[1766182518512,1.72722889,857.64,856.14,0.87090858]
[1766182519314,1.72722889,857.7,856.17,0.87090858]
[1766182519511,0.20294149,857.79,855.62,0.20318202]
[1766182519512,1.72722889,857.78,856.25,0.87090858]
[1766182520315,1.93017038,857.79,856.23,0.87090858]
[1766182520513,0.20294149,857.79,856.23,0.87090858]
[1766182521416,0.20294149,857.79,856.08,1.15900006]
[1766182521417,0.20294149,857.79,856.26,0.87090858]
[1766182522317,0.20294149,857.79,856.24,0.87090858]
[1766182523315,0.20294149,857.79,856.22,0.87090858]
[1766182524426,0.20294149,857.79,856.21,0.87090858]
[1766182524826,0.20294149,857.79,856.18,0.87090858]
[1766182525225,0.20294149,857.79,856.16,0.87090858]
[1766182526221,0.20294149,857.79,856.15,0.87090858]
[1766182527526,0.20294149,857.79,856.14,0.87090858]
[1766182529225,0.20294149,857.79,856.13,0.87090858]
[1766182530325,0.20294149,857.79,856.12,0.87090858]
[1766182531821,0.20294149,857.79,856.08,0.87090858]
[1766182532025,0.20294149,857.79,856.04,0.87090858]
[1766182532427,0.20294149,857.79,855.95,0.87090858]
[1766182534726,0.20294149,857.79,855.98,0.87090858]
[1766182537128,1.72722889,857.78,855.92,0.87090858]
[1766182537329,0.20306286,857.34,855.93,0.87090858]
[1766182541431,0.20306286,857.34,855.94,0.87090858]
[1766182542136,0.20306286,857.34,855.86,0.87090858]
[1766182542331,0.20306286,857.34,855.85,0.87090858]
[1766182543338,0.20306286,857.34,855.8,0.87090858]
[1766182544939,0.20306286,857.34,855.66,1.15900006]
[1766182544940,0.20306286,857.34,855.81,0.87090858]
[1766182545535,0.20306286,857.34,855.82,0.87090858]
[1766182546240,0.20306286,857.34,855.79,0.87090858]
[1766182547340,0.20306286,857.34,855.8,0.87090858]
[1766182548342,0.20306286,857.34,855.81,0.87090858]
[1766182550339,0.20306286,857.34,855.82,0.87090858]
[1766182551338,0.20306286,857.34,855.83,0.87090858]
[1766182552335,0.20306286,857.34,855.84,0.87090858]
[1766182553442,0.20306286,857.34,855.85,0.87090858]
[1766182555242,0.20306286,857.34,855.86,0.87090858]
[1766182556444,0.20306286,857.34,855.87,0.87090858]
[1766182557344,0.20306286,857.34,855.88,0.87090858]
[1766182558644,0.20306286,857.34,855.89,0.87090858]
[1766182559346,0.20306286,857.34,855.9,0.87090858]
[1766182561151,0.20306286,857.34,855.89,0.87090858]
[1766182561351,0.20306286,857.34,855.9,0.87090858]
[1766182561553,0.20306286,857.34,855.86,0.87090858]
[1766182562247,0.20306286,857.34,855.87,0.87090858]
[1766182564354,0.20306286,857.34,855.88,0.87090858]
[1766182564854,0.20306286,857.34,855.87,0.87090858]
[1766182573059,1.72722889,857.31,855.79,0.87090858]
[1766182573560,1.72722889,857.26,855.73,0.87090858]
[1766182574257,1.72722889,857.26,855.72,0.87090858]
[1766182574862,1.72722889,857.27,855.73,0.87090858]
[1766182575357,1.72722889,857.27,855.62,0.20318202]
[1766182575358,1.72722889,857.28,855.72,0.87090858]
[1766182577061,1.72722889,857.22,855.66,0.87090858]
[1766182577259,1.72722889,857.14,855.62,0.20318202]
[1766182578258,1.72722889,857.15,855.62,0.20318202]
[1766182579258,1.72722889,857.16,855.62,0.20318202]
[1766182580262,1.72722889,857.17,855.62,0.20318202]
[1766182585462,1.72722889,857.24,855.62,0.20318202]
[1766182585664,1.72722889,857.25,855.62,0.20318202]
[1766182586363,1.72722889,857.24,855.62,1.0740906]
[1766182587264,1.72722889,857.23,855.62,1.0740906]
[1766182587765,1.72722889,857.27,855.66,0.87090858]
[1766182588264,1.72722889,857.26,855.67,0.87090858]
[1766182589263,1.72722889,857.25,855.68,0.87090858]
[1766182590468,1.72722889,857.24,855.69,0.87090858]
[1766182591267,1.72722889,857.23,855.71,0.87090858]
[1766182592268,1.72722889,857.22,855.71,0.87090858]
[1766182593265,1.72722889,857.21,855.72,0.87090858]
[1766182594271,1.72722889,857.21,855.73,0.87090858]
[1766182595271,1.72722889,857.2,855.73,0.87090858]
[1766182596272,1.72722889,857.19,855.74,0.87090858]
[1766182597272,1.72722889,857.19,855.75,0.87090858]
[1766182598273,1.72722889,857.18,855.75,0.87090858]
[1766182599370,1.72722889,857.18,855.76,0.87090858]
[1766182600271,1.72722889,857.17,855.77,0.87090858]
[1766182601275,1.72722889,857.16,855.77,0.87090858]
[1766182602172,1.72722889,857.16,855.78,0.87090858]
[1766182603175,1.72722889,857.15,855.78,0.87090858]
[1766182603970,1.72722889,857.2,855.83,0.87090858]
[1766182604369,1.72722889,857.2,855.84,0.87090858]
[1766182604776,1.72722889,857.2,855.83,0.87090858]
[1766182605277,1.72722889,857.2,855.84,0.87090858]
[1766182606278,1.72722889,857.19,855.84,0.87090858]
[1766182609282,1.72722889,857.19,855.85,0.87090858]
[1766182610379,1.72722889,857.18,855.85,0.87090858]
[1766182613185,1.72722889,857.18,855.86,0.87090858]
[1766182614085,1.72722889,857.19,855.87,0.87090858]
[1766182614286,1.72722889,857.21,855.9,0.87090858]
[1766182614887,1.72722889,857.19,855.88,0.87090858]
[1766182615384,1.72722889,857.18,855.88,0.87090858]
[1766182618289,1.72722889,857.18,855.89,0.87090858]
[1766182619286,1.72722889,857.17,855.89,0.87090858]
[1766182621090,1.72722889,857.18,855.89,0.87090858]
[1766182621385,1.72722889,857.17,855.9,0.87090858]
[1766182624789,1.72722889,857.18,855.92,0.87090858]
[1766182625289,1.72722889,857.18,855.93,0.87090858]
[1766182627595,1.72722889,857.1,855.85,0.87090858]
[1766182628294,1.72722889,857.09,855.85,0.87090858]
[1766182630294,1.72722889,857.09,855.86,0.87090858]
[1766182631401,1.72722889,857.08,855.86,0.87090858]
[1766182632202,1.72722889,857.08,855.87,0.87090858]
[1766182633503,1.72722889,857.13,855.92,0.87090858]
[1766182633703,1.72722889,857.15,855.94,0.87090858]
[1766182635001,1.72722889,857.15,855.93,0.87090858]
[1766182638304,1.72722889,857.15,855.94,0.87090858]
[1766182638604,1.72722889,857.16,855.95,0.87090858]
[1766182639303,1.72722889,857.15,855.95,0.87090858]
[1766182641202,1.72722889,857.15,855.96,0.87090858]
[1766182642306,1.72722889,857.14,855.96,0.87090858]
[1766182643207,1.72722889,857.14,855.97,0.87090858]
[1766182644210,1.72722889,857.13,855.97,0.87090858]
[1766182645206,1.72722889,857.12,855.97,0.87090858]
[1766182646308,1.72722889,857.12,855.98,0.87090858]
[1766182651210,1.72722889,857.11,855.98,0.87090858]
[1766182654816,1.72722889,857.1,855.97,0.87090858]
[1766182657516,1.72722889,857.09,855.97,0.87090858]
[1766182660315,1.72722889,857.09,855.98,0.87090858]
[1766182660720,1.72722889,856.99,855.88,0.87090858]
[1766182662120,1.72722889,856.99,855.87,0.87090858]
[1766182664815,1.72722889,857.02,855.89,0.87090858]
[1766182665315,1.72722889,857.01,855.89,0.87090858]
[1766182666220,1.72722889,857.02,855.89,0.87090858]
[1766182668217,1.72722889,857.02,855.88,0.87090858]
[1766182671224,1.72722889,857.03,855.88,0.87090858]
[1766182674228,1.72722889,857.03,855.87,0.87090858]
[1766182674924,1.72722889,857.03,855.88,0.87090858]
[1766182676432,1.72722889,856.97,855.81,0.87090858]
[1766182676727,1.72722889,856.95,855.79,0.87090858]
[1766182677328,1.72722889,856.95,855.78,0.87090858]
[1766182678429,1.72722889,856.96,855.78,0.87090858]
[1766182679229,1.72722889,856.96,855.77,0.87090858]
[1766182681124,1.72722889,856.97,855.77,0.87090858]
[1766182682328,1.72722889,856.97,855.76,0.87090858]
[1766182684229,1.72722889,856.98,855.76,0.87090858]
[1766182684825,1.72722889,856.97,855.76,0.87090858]
[1766182685229,1.72722889,856.98,855.75,1.07404079]
[1766182686129,1.72722889,856.95,855.75,0.20313221]
[1766182688233,1.72722889,856.96,855.75,0.20313221]
[1766182691137,1.72722889,856.97,855.75,0.20313221]
[1766182694342,1.72722889,856.98,855.75,0.20313221]
[1766182701047,1.72722889,856.96,855.75,0.20313221]
[1766182702351,1.72722889,856.97,855.75,0.20313221]
[1766182702650,1.72722889,857.05,855.76,0.87090858]
[1766182704849,1.72722889,857.03,855.75,0.20313221]
[1766182705149,1.72722889,857.03,855.75,1.07404079]
[1766182708252,1.72722889,857.02,855.75,1.07404079]
[1766182709152,1.72722889,857.02,855.76,0.87090858]
[1766182711355,1.72722889,857.01,855.76,0.87090858]
[1766182712354,1.72722889,857.01,855.77,0.87090858]
[1766182714354,1.72722889,857.0,855.77,0.87090858]
[1766182714957,1.72722889,857.02,855.79,0.87090858]
[1766182715357,1.72722889,857.02,855.8,0.87090858]
[1766182716354,1.72722889,857.01,855.8,0.87090858]
[1766182717359,1.72722889,857.01,855.81,0.87090858]
[1766182718459,1.72722889,857.0,855.81,0.87090858]
[1766182719262,1.72722889,857.0,855.82,0.87090858]
[1766182719661,1.72722889,857.02,855.84,0.87090858]
[1766182719962,1.72722889,857.03,855.85,0.87090858]
[1766182720357,1.72722889,857.02,855.86,0.87090858]
[1766182726966,1.72722889,857.06,855.9,0.87090858]
[1766182727167,1.72722889,857.07,855.91,0.87090858]
[1766182728363,1.72722889,857.09,855.93,0.87090858]
[1766182729160,1.72722889,857.09,855.92,0.87090858]
[1766182729364,1.72722889,857.09,855.93,0.87090858]
[1766182730264,1.72722889,857.09,855.92,0.87090858]
[1766182730968,1.72722889,857.13,855.96,0.87090858]
[1766182731168,1.72722889,857.14,855.96,0.87090858]
[1766182732164,1.72722889,857.14,855.95,0.87090858]
[1766182734266,1.72722889,857.15,855.95,0.87090858]
[1766182734866,1.72722889,857.15,855.94,0.87090858]
[1766182737273,1.72722889,857.16,855.94,0.87090858]
[1766182737469,1.72722889,857.16,855.93,0.87090858]
[1766182737673,0.20313813,856.88,855.93,0.87090858]
[1766182741369,0.20313813,856.88,855.92,0.87090858]
[1766182741571,0.20313813,856.88,855.8,0.87090858]
[1766182743271,0.20313813,856.88,855.77,0.87090858]
[1766182745472,0.20313813,856.88,855.78,0.87090858]
[1766182746573,0.20313813,856.88,855.71,0.87090858]
[1766182746778,0.20313813,856.88,855.72,0.20317964]
[1766182761587,0.20313813,856.88,855.73,0.87452939]
[1766182762787,0.20313813,856.88,855.76,0.87452939]
[1766182764191,0.20313813,856.88,855.75,0.87452939]
[1766182764388,0.20313813,856.88,855.76,0.87452939]
[1766182765992,0.20313813,856.88,855.72,0.20317964]
[1766182766294,0.20313813,856.88,855.76,0.87451464]
[1766182781605,0.20313813,856.88,855.82,0.87451464]
[1766182782409,0.20313813,856.88,855.84,0.87451464]
[1766182782609,0.20313813,856.88,855.85,0.87451464]
[1766182783310,0.20313813,856.88,855.87,0.87451464]
[1766182783609,0.20313813,856.88,855.88,0.87451464]
[1766182784909,0.20313813,856.88,855.93,0.87451464]
[1766182787307,0.20313813,856.88,855.94,0.87451464]
[1766182788309,0.20313813,856.88,855.93,0.87451464]
[1766182791810,1.74272592,857.21,855.93,0.87451464]
[1766182794914,1.74272592,857.19,855.91,0.87451464]
[1766182795414,1.74272592,857.19,855.9,0.87451464]
[1766182796209,1.74272592,857.19,855.91,0.87451464]
[1766182796413,1.74272592,857.19,855.9,0.87451464]
[1766182799214,1.74272592,857.2,855.9,0.87451464]
[1766182804222,1.74272592,857.2,855.89,0.87451464]
[1766182804926,1.74272592,857.21,855.9,0.87451464]
[1766182814935,1.74272592,857.22,855.91,0.87451464]
[1766182816232,1.74272592,857.22,855.92,0.87451464]
[1766182817233,1.74272592,857.21,855.92,0.87451464]
[1766182819238,1.74272592,857.21,855.93,0.87451464]
[1766182820444,1.74272592,857.21,855.77,1.16603919]
[1766182820644,1.74272592,857.21,855.93,0.87400752]
[1766182821243,1.74272592,857.2,855.93,0.87400752]
[1766182824444,1.74272592,857.2,855.94,0.87400752]
[1766182826447,1.74272592,857.2,855.95,0.87400752]
[1766182828251,1.74272592,857.19,855.95,0.87400752]
[1766182830250,1.74272592,857.19,855.96,0.87400752]
[1766182831353,1.74272592,857.18,855.96,0.87400752]
[1766182833255,1.74272592,857.17,855.97,0.87400752]
[1766182835257,1.74272592,857.16,855.98,0.87400752]
[1766182837260,1.74272592,857.15,855.99,0.87400752]
[1766182838262,1.74272592,857.14,856.0,0.87400752]
[1766182839261,1.74272592,857.14,856.01,0.87400752]
[1766182840259,1.74272592,857.12,856.02,0.87400752]
[1766182840664,1.74272592,857.13,856.02,0.87400752]
[1766182840865,1.74272592,857.12,856.02,0.87400752]
[1766182841364,1.74272592,857.11,856.03,0.87400752]
[1766182842264,1.74272592,857.14,856.06,0.87400752]
[1766182842468,1.74272592,857.13,856.07,0.87400752]
[1766182843267,1.74272592,857.13,856.09,0.87400752]
[1766182844867,1.74272592,857.11,856.08,0.87400752]
[1766182845267,1.74272592,857.11,856.07,0.87400752]
[1766182847270,1.74272592,857.12,856.07,0.87400752]
[1766182853172,1.74272592,857.12,856.06,0.87400752]
[1766182854976,1.74272592,857.14,856.08,0.87400752]
[1766182858876,1.74272592,857.14,856.07,0.87400752]
[1766182874792,1.74272592,857.2,856.13,0.87400752]
[1766182875296,1.74272592,857.21,856.13,0.87400752]
[1766182875499,1.74272592,857.2,856.12,0.87400752]
[1766182876197,1.74272592,857.21,856.12,0.87400752]
[1766182879197,1.74272592,857.21,856.11,0.87400752]
[1766182880194,1.74272592,857.22,856.11,0.87400752]
[1766182884901,1.74272592,857.19,856.08,0.87400752]
[1766182885102,1.74272592,857.2,856.08,0.87400752]
[1766182893817,1.74272592,857.24,856.12,0.87400752]
[1766182894916,1.74272592,857.26,856.14,0.87400752]
[1766182896217,1.74272592,857.27,856.14,0.87400752]
[1766182901116,1.74272592,857.27,856.13,0.87400752]
[1766182901316,1.74272592,857.27,856.14,0.87400752]
[1766182902021,1.74272592,857.27,856.13,0.87400752]
[1766182902622,1.74272592,857.27,856.14,0.87400752]
[1766182902822,1.74272592,857.27,856.13,0.87400752]
[1766182908122,1.74272592,857.3,856.16,0.87400752]
[1766182911228,1.74272592,857.3,856.15,0.87400752]
[1766182912225,1.74272592,857.31,856.15,0.87400752]
[1766182915031,1.74272592,857.31,856.16,0.87400752]
[1766182927534,1.74272592,857.31,856.17,0.87400752]
[1766182929241,1.74272592,857.3,856.17,0.87400752]
[1766182931140,1.74272592,857.3,855.93,6.73392352]
[1766182931141,1.74272592,857.28,856.15,0.87400752]
[1766182931341,1.74272592,857.21,856.08,0.87400752]
[1766182932140,1.74272592,857.2,856.08,0.87400752]
[1766182932546,1.74272592,857.17,856.04,0.87400752]
[1766182933143,1.74272592,857.16,856.05,0.87400752]
[1766182933346,1.74272592,857.17,856.04,0.87400752]
[1766182934144,1.74272592,857.16,856.05,0.87400752]
[1766182934444,1.74272592,857.17,856.04,0.87400752]
[1766182934940,1.74272592,857.15,856.03,0.87400752]
[1766182936243,1.74272592,857.16,856.02,0.87400752]
[1766182937040,1.74272592,857.15,856.02,0.87400752]
[1766182937340,1.74272592,857.07,855.93,6.73392352]
[1766182938245,1.74272592,857.08,855.93,6.73392352]
[1766182939241,1.74272592,857.09,855.93,6.73392352]
[1766182940244,1.74272592,857.1,855.93,6.73392352]
[1766182941046,1.74272592,857.09,855.93,6.73392352]
[1766182941245,1.74272592,857.1,855.93,6.73392352]
[1766182942243,1.74272592,857.11,855.93,6.73392352]
[1766182944251,1.74272592,857.12,855.93,6.73392352]
[1766182944946,1.74272592,857.13,855.93,6.73392352]
[1766182945345,1.74272592,857.14,855.93,6.73392352]
[1766182947148,1.74272592,857.15,855.93,6.73392352]
[1766182950451,2.90454321,857.77,855.93,6.73392352]
[1766182950452,1.74272592,857.16,855.93,6.73392352]
[1766182950652,1.74272592,857.15,855.93,6.73392352]
[1766182951150,1.74272592,857.08,855.93,6.73392352]
[1766182952254,1.74272592,857.09,855.93,6.73392352]
[1766182953253,1.74272592,857.1,855.93,6.73392352]
[1766182954956,1.74272592,857.13,855.93,6.73392352]
[1766182956152,1.74272592,857.14,855.93,6.73392352]
[1766182956356,2.90454321,857.75,855.93,6.73392352]
[1766182956357,1.74272592,857.17,855.93,6.73392352]
[1766182957552,1.74272592,857.19,855.93,6.73392352]
[1766182958554,1.74272592,857.22,855.93,6.73392352]
[1766182964765,1.74272592,857.23,855.93,6.73392352]
[1766182964964,1.74272592,857.22,855.93,6.73392352]
[1766182965460,1.74272592,857.31,855.96,0.87400752]
[1766182968264,1.74272592,857.3,855.96,0.87400752]
[1766182970361,1.74272592,857.3,855.97,0.87400752]
[1766182973368,1.74272592,857.29,855.97,0.87400752]
[1766182975064,1.74272592,857.28,855.96,0.87400752]
[1766182976365,1.74272592,857.28,855.97,0.87400752]
[1766182977262,1.74272592,857.27,855.97,0.87400752]
[1766182981468,1.74272592,857.27,855.98,0.87400752]
[1766182982272,1.74272592,857.26,855.98,0.87400752]
[1766182984874,1.74272592,857.26,855.99,0.87400752]
[1766182985172,1.74272592,857.28,856.01,0.87400752]
[1766182987173,1.74272592,857.27,856.02,0.87400752]
[1766182990176,2.90454321,857.88,855.87,1.16603919]
[1766182990177,1.74272592,857.26,856.03,0.87400752]
[1766182990880,0.20311324,856.98,856.03,0.87400752]
[1766183009193,0.20311324,856.98,855.99,0.87400752]
[1766183011691,0.20311324,856.98,856.0,0.87400752]
[1766183013297,0.20311324,856.98,856.01,0.87400752]